bitfinex-derivatives/quotes_ETHF0:USTF0_20260116
["timestamp","ask_amount","ask_price","bid_price","bid_amount"]
[1768575798380,0.91713035,3295.5,3293.6,0.5456375]
[1768575800374,2.35793856,3295.1,3293.3,1.517]
[1768575800570,0.91713035,3295.0,3293.3,1.517]
[1768575801167,0.91713035,3295.0,3293.4,0.65724166]
[1768575801372,0.91713035,3294.9,3293.4,0.65724166]
[1768575801573,0.64669365,3295.7,3293.4,0.65724166]
[1768575801773,0.9175065,3295.6,3293.4,0.65724166]
[1768575801974,0.9175065,3295.5,3293.4,0.65724166]
[1768575802173,0.9175065,3295.4,3293.4,0.65724166]
[1768575802369,4.97608825,3295.9,3293.4,0.65724166]
[1768575802370,0.9175065,3295.3,3293.4,0.65724166]
[1768575802583,0.00224734,3295.9,3293.9,0.65724166]
[1768575802887,0.91790819,3295.8,3293.9,0.65724166]
[1768575803083,0.00224734,3295.9,3293.9,0.80908166]
[1768575803273,0.91799339,3295.8,3294.2,0.65724166]
[1768575803477,0.00224734,3295.9,3294.4,0.65724166]
[1768575804873,0.00224734,3295.9,3294.6,0.65724166]
[1768575805671,0.00224734,3295.9,3294.3,40.8]
[1768575805879,0.91848076,3295.8,3294.3,40.8]
[1768575806071,0.91848076,3295.7,3294.3,40.8]
[1768575806377,0.79847365,3295.4,3293.5,3.491]
[1768575806573,0.91848076,3295.3,3293.5,3.491]
[1768575807584,0.91848076,3295.3,3293.6,0.65724166]
[1768575808182,0.91848076,3295.3,3293.7,3.494]
[1768575808383,0.91848076,3295.3,3293.8,3.494]
[1768575811185,0.91848076,3295.3,3293.9,0.66062044]
[1768575811391,0.00224734,3295.9,3294.0,0.66062044]
[1768575811687,0.00224734,3295.9,3294.2,0.66062044]
[1768575811889,0.00224734,3295.9,3294.4,0.66062044]
[1768575812289,0.00224734,3295.9,3294.5,41.46062044]
[1768575812490,0.92138733,3295.8,3294.5,40.8]
[1768575812785,0.92138733,3295.8,3293.6,0.15186]
[1768575812786,0.92138733,3295.7,3294.1,0.66062044]
[1768575813090,0.92138733,3295.6,3294.6,3.497]
[1768575813281,0.00224734,3295.9,3294.6,3.497]
[1768575813483,0.92128562,3295.8,3294.6,3.497]
[1768575813683,0.92128562,3295.7,3294.6,3.497]
[1768575813881,0.92129109,3295.6,3294.6,3.497]
[1768575814086,0.00224734,3295.9,3294.6,3.497]
[1768575814292,0.92129479,3295.8,3294.6,3.497]
[1768575814486,0.92129479,3295.7,3294.6,3.497]
[1768575814686,0.00224734,3295.9,3294.6,3.497]
[1768575814888,0.92129177,3295.8,3294.6,3.497]
[1768575815086,0.92129177,3295.7,3294.6,3.497]
[1768575815284,0.00224734,3295.9,3294.7,0.66062044]
[1768575815593,0.92129238,3295.8,3294.2,40.8]
[1768575815781,0.92129238,3295.7,3294.4,0.66062044]
[1768575815979,0.00224734,3295.9,3294.4,0.66062044]
[1768575816182,0.92126008,3295.8,3294.4,0.66062044]
[1768575816391,0.00224734,3295.9,3294.4,0.66062044]
[1768575816597,0.92121882,3295.8,3294.4,0.66062044]
[1768575816795,0.00224734,3295.9,3294.4,0.66062044]
[1768575816985,0.92122188,3295.8,3294.4,0.66062044]
[1768575817284,0.00224734,3295.9,3294.4,0.66062044]
[1768575817591,0.9211649,3295.8,3294.5,3.502]
[1768575817794,0.00224734,3295.9,3294.5,3.502]
[1768575817995,0.92112913,3295.8,3294.5,4.16262044]
[1768575818287,0.00224734,3295.9,3294.6,0.66062044]
[1768575819297,0.00224734,3295.9,3294.7,6.54]
[1768575819493,0.00224734,3295.9,3294.8,0.66062044]
[1768575820089,2.29681606,3297.3,3294.8,0.81242044]
[1768575820295,0.92087435,3297.2,3295.3,0.66062044]
[1768575820496,0.006065,3297.4,3295.3,0.81240044]
[1768575820697,0.92105383,3297.3,3295.5,0.66062044]
[1768575820891,0.006065,3297.4,3295.6,4.16562044]
[1768575821093,1.61071255,3297.3,3295.6,0.00369049]
[1768575821301,0.68966333,3297.0,3295.6,0.00369049]
[1768575821493,0.92104922,3296.9,3295.6,0.00369049]
[1768575821690,0.92104922,3296.8,3295.6,0.00369049]
[1768575821998,0.68966333,3297.0,3295.6,0.00369049]
[1768575822304,0.1517,3297.1,3295.7,3.505]
[1768575822498,0.91990205,3297.0,3295.7,3.505]
[1768575822797,0.00910891,3297.4,3295.7,3.505]
[1768575822989,0.91990132,3297.3,3295.7,3.505]
[1768575823185,0.91990132,3297.2,3295.7,3.505]
[1768575823395,0.00910891,3297.4,3295.8,0.66062044]
[1768575825496,0.00910891,3297.4,3295.6,0.00369049]
[1768575825497,0.85046224,3297.4,3295.6,0.00369049]
[1768575825694,0.15169,3297.2,3295.6,0.00369049]
[1768575825896,0.84135333,3297.2,3295.6,0.00369049]
[1768575826097,0.15169,3297.2,3295.6,3.50969049]
[1768575826702,0.00910891,3297.4,3295.7,0.66062044]
[1768575828102,0.00910891,3297.4,3295.7,0.81238044]
[1768575828690,0.68966333,3298.3,3296.0,0.66062044]
[1768575829004,0.15165,3298.1,3296.0,0.66062044]
[1768575829299,0.84128333,3298.8,3296.4,0.66062044]
[1768575829598,0.91775839,3298.7,3296.6,0.66062044]
[1768575829900,0.91775839,3298.6,3296.6,0.66062044]
[1768575830102,0.91775839,3298.5,3296.6,0.66062044]
[1768575830299,0.00265961,3298.7,3296.6,0.66062044]
[1768575830601,0.00265961,3298.7,3297.0,0.66062044]
[1768575830797,0.00265961,3298.7,3297.0,3.85232044]
[1768575831000,0.00265961,3298.7,3297.1,0.66062044]
[1768575831707,0.00265961,3298.7,3297.3,0.73097877]
[1768575832002,0.00265961,3298.7,3297.5,0.73097877]
[1768575832402,0.00265961,3298.7,3297.6,6.542]
[1768575832599,0.00265961,3298.7,3297.7,0.73097877]
[1768575832790,0.15156,3300.2,3297.7,0.73097877]
[1768575832989,0.91543959,3300.1,3297.7,0.73097877]
[1768575833195,0.15156,3300.2,3297.7,0.73097877]
[1768575833502,1.94711036,3300.8,3297.9,0.73097877]
[1768575833705,1.95055109,3300.8,3298.2,0.73097877]
[1768575834000,1.95055109,3300.8,3298.4,0.73097877]
[1768575834698,1.24884825,3300.8,3298.6,0.73097877]
[1768575835098,0.70170284,3300.7,3298.6,0.73097877]
[1768575835701,0.70170284,3300.7,3298.7,3.505]
[1768575836103,0.70170284,3300.7,3298.7,4.23597877]
[1768575836302,0.15154,3300.6,3298.8,0.73097877]
[1768575837000,0.15154,3300.5,3298.7,3.502]
[1768575837306,0.15154,3300.5,3298.8,3.502]
[1768575837699,1.24884825,3300.8,3298.8,3.502]
[1768575837700,1.24884825,3300.8,3298.9,0.73097877]
[1768575838405,1.24884825,3300.8,3299.0,3.502]
[1768575838802,1.95055109,3300.8,3299.1,3.503]
[1768575839310,1.95055109,3300.8,3299.2,3.504]
[1768575839802,0.70170284,3300.7,3298.6,40.8]
[1768575840000,0.85323284,3300.7,3298.7,3.504]
[1768575840204,0.85323284,3300.7,3298.8,3.504]
[1768575840396,0.15154,3300.5,3298.7,3.505]
[1768575840607,0.15154,3300.5,3298.6,40.8]
[1768575840608,0.70170284,3300.5,3298.0,3.033]
[1768575840796,0.85326284,3300.1,3298.4,3.505]
[1768575841001,0.85327284,3300.0,3297.9,40.8]
[1768575841296,0.15157,3299.9,3297.8,0.73097877]
[1768575841503,0.85327284,3299.9,3297.8,0.73097877]
[1768575842107,0.85327284,3299.9,3297.8,4.23597877]
[1768575842609,0.85327284,3299.9,3298.0,1.822]
[1768575842810,0.85327284,3299.9,3297.8,0.73097877]
[1768575843005,0.85327284,3299.8,3297.8,3.504]
[1768575843402,0.85327284,3299.8,3297.8,4.23497877]
[1768575844214,0.15157,3299.8,3299.0,0.04968944]
[1768575844411,0.70170284,3300.3,3299.0,0.04968944]
[1768575844803,0.85325284,3300.3,3299.0,0.04968944]
[1768575845202,0.85325284,3300.2,3297.8,4.38663877]
[1768575845403,0.85326284,3300.1,3298.0,3.501]
[1768575845820,0.70170284,3299.9,3297.9,3.501]
[1768575846709,0.85328284,3299.7,3297.8,0.73097877]
[1768575847018,0.15158,3299.6,3297.8,0.73097877]
[1768575847310,0.70170284,3300.2,3298.2,0.73340262]
[1768575847508,0.15155,3300.3,3298.2,0.73340262]
[1768575847698,0.70170284,3300.7,3298.4,0.73097877]
[1768575848707,0.70170284,3300.7,3298.4,0.88261877]
[1768575849207,1.24884825,3300.8,3298.6,0.73097877]
[1768575849611,0.15153,3300.7,3298.6,0.73097877]
[1768575850207,1.24884825,3300.8,3298.6,0.88260877]
[1768575851213,1.24884825,3300.8,3299.0,0.73097877]
[1768575851416,1.24884825,3300.8,3298.9,0.15161]
[1768575851417,1.24884825,3300.8,3299.2,0.73097877]
[1768575852419,1.24884825,3300.8,3299.3,3.499]
[1768575853004,1.24884825,3300.8,3299.2,0.73097877]
[1768575853211,1.24884825,3300.8,3299.1,3.499]
[1768575853411,0.15153,3300.7,3298.6,0.73097877]
[1768575853613,0.15153,3300.7,3298.8,0.73097877]
[1768575854015,0.15155,3300.3,3298.6,0.73097877]
[1768575854221,1.24884825,3300.8,3298.8,0.73097877]
[1768575854412,0.9074533,3300.7,3298.8,0.73097877]
[1768575854610,0.70170284,3300.7,3298.7,3.032]
[1768575854816,0.15155,3300.3,3298.8,3.501]
[1768575855614,0.15155,3300.3,3298.7,3.032]
[1768575855615,0.15155,3300.3,3298.4,3.501]
[1768575855822,0.85325284,3300.3,3298.4,3.501]
[1768575856117,0.85325284,3300.3,3298.4,4.23197877]
[1768575856908,0.85325284,3300.3,3298.5,3.5]
[1768575857105,0.90979751,3300.2,3298.5,3.5]
[1768575857315,0.85325284,3300.3,3298.5,3.5]
[1768575857511,1.06145505,3300.2,3298.5,3.5]
[1768575857711,0.70170284,3300.1,3298.2,0.00242385]
[1768575857924,0.1516,3299.3,3298.2,0.00242385]
[1768575858112,0.15157,3299.9,3298.3,0.73097877]
[1768575858312,0.91080498,3299.8,3298.3,0.73097877]
[1768575858520,0.91080498,3299.7,3298.3,0.73097877]
[1768575858710,0.15157,3299.9,3298.3,0.73097877]
[1768575858913,0.91091986,3299.8,3298.3,0.73097877]
[1768575859216,0.15157,3299.9,3298.2,0.00242385]
[1768575859217,0.85330284,3299.3,3298.2,0.00242385]
[1768575859410,0.85330284,3299.3,3297.1,0.88267877]
[1768575859411,0.15161,3299.1,3297.1,0.73097877]
[1768575859613,0.91091986,3299.0,3297.1,4.22897877]
[1768575859920,0.91091986,3299.0,3297.1,41.53097877]
[1768575860114,1.6126227,3299.0,3297.1,40.8]
[1768575860313,2.15653424,3299.4,3297.1,40.8]
[1768575860314,0.15163,3298.5,3297.1,0.00264802]
[1768575860624,0.91091986,3298.4,3297.1,0.00264802]
[1768575860822,0.91435617,3298.4,3297.1,0.00264802]
[1768575861118,0.00343631,3298.4,3297.1,0.73362679]
[1768575861619,0.1516,3299.2,3297.1,0.73362679]
[1768575861818,0.91159169,3299.1,3297.1,0.73362679]
[1768575862022,0.91159169,3299.0,3297.1,0.73362679]
[1768575862224,0.70170284,3299.4,3297.1,0.73362679]
[1768575862428,0.91173402,3299.3,3297.1,0.88532679]
[1768575862613,0.15157,3299.9,3297.3,0.77317952]
[1768575862815,0.91174324,3299.8,3297.3,0.92486952]
[1768575863015,0.91174324,3299.7,3297.5,0.77317952]
[1768575863314,0.91174324,3299.6,3297.5,0.77317952]
[1768575863516,0.91174324,3299.5,3297.5,0.77317952]
[1768575863716,0.91174324,3299.4,3297.5,0.77317952]
[1768575863913,0.15534862,3299.9,3297.5,0.77317952]
[1768575864120,0.9117545,3299.8,3297.5,0.77317952]
[1768575864320,0.9117545,3299.7,3298.1,0.15165]
[1768575864522,0.00377862,3299.9,3298.3,0.77317952]
[1768575864718,0.91194797,3299.8,3298.3,0.77317952]
[1768575864927,0.00377862,3299.9,3298.1,3.64765]
[1768575865225,0.91194978,3299.8,3298.1,3.496]
[1768575865429,0.00377862,3299.9,3298.0,4.26817952]
[1768575865720,0.91203503,3299.8,3298.1,0.77317952]
[1768575865933,0.00377862,3299.9,3298.1,0.77317952]
[1768575866116,1.39693752,3300.8,3298.6,0.77317952]
[1768575866318,1.24540752,3300.8,3298.7,40.8]
[1768575866514,1.24540752,3300.8,3298.8,0.15161]
[1768575867230,1.24833132,3300.8,3298.9,0.15161]
[1768575867624,0.76299285,3300.7,3298.7,40.8]
[1768575867931,0.91455285,3300.2,3297.9,3.496]
[1768575868131,0.91455285,3300.2,3298.0,0.77317952]
[1768575868435,0.91455285,3300.2,3298.1,44.297]
[1768575869323,0.80041519,3300.0,3297.4,0.79984192]
[1768575869522,0.95198519,3299.9,3297.5,2.93984192]
[1768575869723,0.95198519,3299.9,3297.6,0.79984192]
[1768575869933,0.95198519,3299.9,3297.7,40.8]
[1768575870523,0.80041519,3299.7,3297.7,40.8]
[1768575871319,0.80041519,3299.7,3297.7,41.75151192]
[1768575871831,0.80041519,3299.7,3297.7,40.95167]
[1768575872132,0.80041519,3299.7,3297.7,40.8]
[1768575874329,0.80041519,3299.7,3297.7,42.317]
[1768575875030,0.80041519,3299.7,3297.1,0.80248994]
[1768575875031,0.80041519,3299.7,3297.2,3.032]
[1768575875234,0.95199519,3299.7,3297.3,3.509]
[1768575875536,0.80041519,3299.3,3297.4,40.8]
[1768575875738,0.80041519,3299.9,3297.4,41.59984192]
[1768575875935,0.95198519,3299.9,3297.4,41.59984192]
[1768575876131,0.15158,3299.6,3297.4,41.59984192]
[1768575876330,0.15158,3299.6,3297.4,41.75152192]
[1768575877032,0.95199519,3299.6,3297.5,3.511]
[1768575878140,0.80041519,3299.4,3297.5,3.511]
[1768575878335,0.80041519,3299.4,3297.1,3.03464802]
[1768575878530,0.80041519,3299.1,3297.1,3.03464802]
[1768575878732,0.80041519,3298.9,3297.1,0.00264802]
[1768575878928,0.80041519,3298.9,3297.2,3.515]
[1768575879328,0.80041519,3298.7,3297.2,3.515]
[1768575879838,0.95203519,3298.7,3297.2,3.515]
[1768575880133,0.95203519,3298.7,3297.1,3.51864802]
[1768575880339,0.80041519,3298.4,3297.1,0.00264802]
[1768575880540,0.80304307,3298.4,3297.1,0.00264802]
[1768575882339,0.00262788,3298.4,3297.1,0.00264802]
[1768575882841,0.80041519,3299.0,3297.1,0.00264802]
[1768575883226,0.80041519,3299.0,3297.2,3.66669]
[1768575883441,0.80041519,3299.0,3297.2,3.515]
[1768575883834,0.80420432,3299.0,3297.2,3.514]
[1768575885027,0.90738591,3298.9,3297.1,0.00264802]
[1768575885232,1.70771395,3298.8,3297.1,0.00264802]
[1768575885535,0.80041519,3298.6,3297.1,0.00264802]
[1768575888142,0.95205519,3298.4,3295.9,3.51]
[1768575888335,0.80041519,3298.2,3295.9,3.51]
[1768575888536,0.80041519,3298.2,3296.0,40.8]
[1768575888739,0.80041519,3298.2,3295.9,3.51]
[1768575888938,0.80041519,3298.2,3295.3,3.77087757]
[1768575888939,0.80041519,3298.0,3295.2,3.77087757]
[1768575889240,0.80041519,3297.8,3295.3,40.8]
[1768575889538,0.80041519,3297.4,3295.3,40.8]
[1768575889746,0.80041519,3296.8,3295.2,0.00251397]
[1768575893046,0.78907319,3298.0,3295.7,1.76837249]
[1768575893248,0.78907319,3298.0,3295.8,3.515]
[1768575893636,0.63741319,3298.0,3296.0,0.15175]
[1768575894140,0.63741319,3298.0,3296.1,3.515]
[1768575895651,0.63741319,3298.0,3296.2,40.8]
[1768575896645,0.63741319,3298.5,3296.2,42.56837249]
[1768575896839,0.63741319,3298.5,3296.3,0.81595926]
[1768575897752,0.63741319,3298.5,3296.5,0.15172]
[1768575898947,0.63741319,3298.5,3296.2,40.8]
[1768575899136,0.63741319,3298.5,3296.3,3.521]
[1768575899947,0.15164,3298.4,3296.2,40.8]
[1768575900140,0.63741319,3298.2,3295.7,0.65237991]
[1768575900349,0.63741319,3297.1,3295.2,0.00251397]
[1768575900544,0.63741319,3297.6,3295.3,3.523]
[1768575900753,0.63741319,3297.6,3295.6,0.15176]
[1768575900941,0.63741319,3297.6,3295.7,0.15176]
[1768575901355,0.63741319,3298.5,3295.9,0.15175]
[1768575901551,0.63741319,3298.3,3295.9,0.15175]
[1768575901951,0.63741319,3298.3,3296.5,0.15172]
[1768575902152,0.63741319,3298.3,3296.6,3.523]
[1768575902653,0.63741319,3298.3,3296.3,1.76837249]
[1768575902842,0.63741319,3298.3,3295.9,0.76800861]
[1768575903049,0.78905319,3298.3,3296.0,3.522]
[1768575903950,0.63741319,3298.3,3296.3,1.92010249]
[1768575904362,0.63741319,3298.3,3296.3,0.15173]
[1768575905163,0.63741319,3298.3,3296.0,3.52]
[1768575905857,0.63741319,3298.1,3296.0,3.52]
[1768575908754,0.63741319,3298.1,3296.3,1.92010249]
[1768575908952,0.63741319,3298.8,3296.8,1.76837249]
[1768575909152,0.90789871,3298.7,3296.8,1.76837249]
[1768575909351,0.63741319,3298.8,3296.7,0.15171]
[1768575909553,0.63741319,3298.6,3296.7,40.95171]
[1768575909753,0.63741319,3298.6,3296.7,40.8]
[1768575909754,0.90791985,3298.5,3296.7,40.8]
[1768575909954,0.63741319,3298.4,3296.4,3.516]
[1768575910366,0.63741319,3298.4,3296.4,44.316]
[1768575910564,0.63741319,3298.9,3296.7,0.52894647]
[1768575910751,0.90804841,3298.8,3296.8,1.76837249]
[1768575910951,0.63741319,3298.9,3296.9,0.52894647]
[1768575911960,0.63741319,3298.9,3296.8,0.15171]
[1768575912958,0.63741319,3298.9,3297.0,0.1517]
[1768575913561,0.00378913,3299.0,3297.1,0.50551914]
[1768575914557,0.00378913,3299.0,3297.2,0.15169]
[1768575914751,0.63741319,3298.9,3296.5,3.68771932]
[1768575914956,0.63741319,3298.9,3296.5,3.18572]
[1768575915156,0.63741319,3298.7,3296.6,3.512]
[1768575915766,0.63741319,3298.7,3296.5,0.15172]
[1768575915963,0.63741319,3298.7,3296.5,3.66572]
[1768575916766,0.63741319,3298.5,3296.5,3.514]
[1768575917369,0.00378913,3299.0,3296.8,0.4715623]
[1768575917666,0.64120232,3299.0,3296.8,0.6232723]
[1768575918455,0.64120232,3299.0,3296.9,0.15171]
[1768575918661,0.64120232,3299.0,3297.1,0.61414342]
[1768575918862,0.00378913,3299.0,3297.3,0.15169]
[1768575919071,0.64120232,3299.0,3297.0,1.76837249]
[1768575919658,0.00378913,3299.0,3297.3,0.15169]
[1768575919859,0.00378913,3299.0,3297.5,0.15167]
[1768575920061,0.00378913,3299.0,3297.6,3.515]
[1768575920268,0.00378913,3299.0,3297.6,3.51807746]
[1768575920471,0.00378913,3299.0,3297.6,44.31807746]
[1768575921558,0.00378913,3299.0,3297.6,47.35207746]
[1768575921763,0.63741319,3299.6,3297.7,0.15167]
[1768575922472,0.49705534,3300.3,3298.0,0.15165]
[1768575922662,1.40586098,3300.2,3298.0,0.15165]
[1768575922862,1.40586098,3300.1,3298.0,0.15165]
[1768575923066,0.49705534,3300.0,3298.0,0.15165]
[1768575923465,0.49705534,3300.0,3298.0,3.67065]
[1768575924973,0.49705534,3300.0,3297.6,43.83707746]
[1768575924974,0.49705534,3300.0,3297.6,40.80307746]
[1768575925174,0.49705534,3299.8,3297.7,3.517]
[1768575925369,0.49705534,3299.8,3297.6,40.80307746]
[1768575925570,0.49705534,3299.7,3297.7,3.518]
[1768575925867,0.49705534,3299.3,3297.6,0.00307746]
[1768575926577,0.49705534,3299.8,3297.7,1.76837249]
[1768575926768,0.49705534,3299.6,3297.8,3.519]
[1768575927871,0.49705534,3299.6,3297.8,3.67066]
[1768575928070,0.49705534,3299.6,3298.0,0.15165]
[1768575928669,0.45701203,3300.2,3298.1,0.15165]
[1768575928872,0.45701203,3300.2,3298.1,1.92002249]
[1768575929270,0.45701203,3300.2,3298.1,4.80837249]
[1768575929574,0.00380052,3300.3,3298.5,0.15163]
[1768575931677,0.00380052,3300.3,3298.6,40.8]
[1768575933982,0.00380052,3300.3,3298.7,3.517]
[1768575934184,0.00380052,3300.3,3298.8,3.18461]
[1768575934388,0.00380052,3300.3,3298.9,0.32448666]
[1768575934588,1.24540752,3300.8,3299.1,2.09285915]
[1768575934976,0.45701203,3300.7,3299.2,3.519]
[1768575935181,1.24540752,3300.8,3299.2,3.519]
[1768575935577,1.24817022,3300.8,3299.2,3.519]
[1768575935778,1.24817022,3300.8,3299.2,3.98334775]
[1768575935978,1.24817022,3300.8,3299.3,3.519]
[1768575936585,1.24817022,3300.8,3299.4,3.518]
[1768575937590,1.24817022,3300.8,3299.5,0.29720263]
[1768575938487,1.24817022,3300.8,3299.5,0.44879263]
[1768575939991,0.31068287,3300.8,3299.6,1.91995249]
[1768575940197,0.006058,3301.4,3299.6,1.76837249]
[1768575940594,0.006058,3301.4,3299.8,0.15157]
[1768575941089,0.006058,3301.4,3299.9,40.8]
[1768575941285,0.00917353,3301.4,3299.9,40.8]
[1768575942093,0.00917353,3301.4,3300.1,1.76837249]
[1768575942299,0.00917353,3301.4,3300.1,1.77155637]
[1768575944392,0.00917353,3301.4,3300.1,1.92311637]
[1768575944793,0.00917353,3301.4,3300.1,0.15474388]
[1768575945000,0.00917353,3301.4,3300.2,3.515]
[1768575946702,0.00917353,3301.4,3300.3,40.8]
[1768575947703,0.00917353,3301.4,3300.4,3.518]
[1768575948497,0.00917353,3301.4,3300.1,0.00318388]
[1768575948696,0.00917353,3301.4,3300.1,3.52418388]
[1768575948697,0.46618556,3301.4,3300.1,3.52418388]
[1768575950205,0.46618556,3301.4,3300.1,0.00318388]
[1768575950406,0.45701203,3300.9,3299.0,3.359]
[1768575951403,0.45701203,3300.9,3299.0,3.36186266]
[1768575951901,0.3688914,3300.4,3299.0,0.00286266]
[1768575952106,1.87349268,3301.1,3297.7,3.031]
[1768575952107,0.5204414,3300.2,3297.7,3.031]
[1768575952299,0.3688914,3300.1,3297.8,1.534]
[1768575952503,0.3688914,3300.1,3297.9,40.8]
[1768575952809,0.3688914,3300.1,3298.0,0.15165]
[1768575953106,0.3688914,3300.1,3298.0,0.15522453]
[1768575953904,0.3688914,3300.1,3298.1,3.521]
[1768575954111,0.3688914,3300.1,3298.1,3.522]
[1768575954415,0.5204514,3300.1,3298.0,0.00357453]
[1768575954601,0.3688914,3299.9,3298.0,0.00357453]
[1768575954797,0.3688914,3299.6,3298.0,0.00357453]
[1768575956103,0.5204814,3299.5,3298.0,0.00357453]
[1768575956404,0.3688914,3299.3,3297.0,1.437]
[1768575957006,0.3688914,3299.3,3297.4,0.15168]
[1768575957204,0.3688914,3299.3,3297.5,40.8]
[1768575958813,0.3688914,3299.3,3297.5,40.95168]
[1768575959916,0.3688914,3300.0,3297.7,0.15167]
[1768575960807,0.3688914,3300.0,3297.6,1.87349268]
[1768575961007,0.3688914,3300.0,3298.0,0.15165]
[1768575961208,0.3688914,3300.0,3298.1,6.558]
[1768575962016,0.3688914,3300.0,3298.2,3.526]
[1768575963221,0.3688914,3300.0,3298.0,0.15165]
[1768575963415,0.3688914,3300.0,3298.1,3.525]
[1768575964807,0.3688914,3300.7,3299.0,0.15161]
[1768575965003,0.3688914,3300.7,3298.5,1.87349268]
[1768575965004,0.3688914,3300.7,3299.1,6.7066]
[1768575965210,0.3688914,3301.3,3299.1,6.7066]
[1768575965410,0.3688914,3301.3,3299.2,40.8]
[1768575965610,0.3688914,3301.3,3299.2,40.9516]
[1768575966005,0.3688914,3301.3,3299.4,0.15159]
[1768575968416,0.3688914,3301.3,3299.7,0.15157]
[1768575969118,0.00917353,3301.4,3299.2,42.67349268]
[1768575969319,0.00917353,3301.4,3300.1,0.15156]
[1768575969518,0.00917353,3301.4,3300.2,3.53]
[1768575970224,0.00917353,3301.4,3300.2,3.68155]
[1768575971015,0.00917353,3301.4,3300.3,40.8]
[1768575972323,0.00917353,3301.4,3300.4,3.531]
[1768575972522,0.00273633,3301.4,3300.4,3.531]
[1768575972822,0.3688914,3301.8,3300.4,3.531]
[1768575973423,0.3688914,3301.8,3300.5,3.534]
[1768575973935,0.37144703,3301.8,3300.5,3.534]
[1768575974315,0.37144703,3301.8,3300.1,0.00214122]
[1768575974517,0.37144703,3301.8,3300.1,3.53714122]
[1768575976327,0.3688914,3301.4,3300.1,0.00214122]
[1768575976533,0.3688914,3301.3,3299.3,1.59]
[1768575976718,0.3688914,3301.2,3298.8,0.15162]
[1768575976917,0.3688914,3301.2,3298.9,42.586]
[1768575977329,0.3688914,3300.9,3298.9,1.786]
[1768575977629,0.3688914,3300.8,3298.9,1.78867426]
[1768575978524,0.3688914,3300.2,3298.9,0.00267426]
[1768575978923,0.3688914,3300.1,3298.0,3.535]
[1768575979318,0.5204514,3300.1,3298.0,3.535]
[1768575979523,0.3688914,3300.0,3298.0,3.535]
[1768575980014,0.3688914,3300.0,3298.0,3.53744699]
[1768575981131,0.3688914,3300.0,3298.3,0.15164]
[1768575981525,0.3688914,3300.0,3298.5,0.15163]
[1768575981727,0.30326363,3300.6,3298.6,0.15163]
[1768575982629,0.30326363,3300.6,3298.0,0.00244699]
[1768575982934,0.30326363,3300.6,3298.2,0.15164]
[1768575983433,0.30326363,3300.6,3298.3,0.15164]
[1768575983625,0.30326363,3300.6,3298.4,0.15164]
[1768575983824,0.30326363,3300.6,3298.8,0.15162]
[1768575984535,0.30326363,3300.6,3298.9,40.8]
[1768575985133,0.30326363,3300.6,3298.1,0.15165]
[1768575985324,0.30326363,3300.6,3298.2,6.71364]
[1768575985529,0.30326363,3300.6,3298.3,40.8]
[1768575986232,0.30326363,3300.6,3298.3,40.95164]
[1768575986624,0.30326363,3300.6,3298.5,0.15163]
[1768575987024,0.30326363,3300.6,3298.7,0.15162]
[1768575987424,0.30326363,3300.6,3298.3,40.8]
[1768575987625,0.30326363,3300.6,3298.3,40.95164]
[1768575987838,0.30326363,3301.2,3299.0,0.15161]
[1768575988033,0.30326363,3301.2,3299.1,3.534]
[1768575989030,0.30326363,3301.2,3299.1,3.6856]
[1768575990042,0.30326363,3301.2,3299.4,0.15159]
[1768575990927,0.30326363,3301.2,3299.5,40.8]
[1768575993039,0.30326363,3301.2,3299.3,3.531]
[1768575998142,0.30326363,3301.2,3299.5,0.15158]
[1768575998444,0.30326363,3301.2,3299.6,0.15158]
[1768575999034,0.30326363,3301.2,3299.7,40.8]
[1768575999238,0.30326363,3301.2,3299.6,0.15158]
[1768575999749,0.30326363,3301.2,3299.7,3.546]
[1768576002446,0.30489123,3301.8,3299.7,6.579]
[1768576002942,0.30489123,3301.8,3300.2,0.15155]
[1768576004047,0.00255563,3301.8,3300.3,0.15155]
[1768576004352,0.00255563,3301.8,3300.4,3.70054]
[1768576004548,0.00255563,3301.8,3300.5,3.031]
[1768576005250,0.00255563,3301.8,3300.5,6.064]
[1768576005454,0.00255563,3301.8,3300.7,0.15153]
[1768576005749,0.3023356,3302.9,3301.1,0.15151]
[1768576005943,0.3023356,3302.9,3301.3,0.1515]
[1768576006246,4.11943114,3304.6,3301.2,3.547]
[1768576006247,0.3023356,3303.5,3301.8,0.15148]
[1768576006546,0.3023356,3303.5,3301.8,6.21548]
[1768576006748,0.304684,3303.5,3301.2,40.8]
[1768576006950,0.304684,3303.5,3301.3,6.577]
[1768576007845,0.456084,3303.5,3301.2,40.8]
[1768576008050,0.3023356,3303.4,3301.3,3.548]
[1768576011063,0.3023356,3303.3,3301.3,3.548]
[1768576011551,0.3023356,3303.3,3301.4,40.8]
[1768576013655,0.3023356,3303.3,3301.5,3.557]
[1768576013856,0.15142,3303.2,3301.5,3.557]
[1768576014057,0.25757216,3303.1,3301.5,3.557]
[1768576014246,0.25757216,3303.1,3300.8,1.517]
[1768576014561,0.25757216,3302.9,3300.9,3.558]
[1768576014947,0.25757216,3302.9,3301.1,2.02340474]
[1768576015254,0.25757216,3302.9,3301.6,1.87189474]
[1768576015448,0.25757216,3302.9,3301.0,3.033]
[1768576015449,0.0023484,3303.5,3302.1,1.87189474]
[1768576015651,0.0023484,3303.5,3301.8,1.87189474]
[1768576016656,0.0023484,3303.5,3301.9,0.15147]
[1768576018853,0.25992056,3303.5,3302.0,6.584]
[1768576019050,0.25992056,3303.5,3301.1,0.15151]
[1768576019255,0.25992056,3303.5,3301.3,3.03]
[1768576020449,0.25992056,3303.5,3301.3,3.552]
[1768576020858,0.25992056,3303.5,3301.5,1.87189474]
[1768576021158,0.25992056,3303.5,3302.0,1.87189474]
[1768576021549,0.25992056,3303.5,3302.1,40.8]
[1768576021749,0.0023484,3303.5,3302.2,3.03]
[1768576022054,0.0023484,3303.5,3302.3,3.551]
[1768576022852,0.25757216,3304.8,3303.0,1.87189474]
[1768576023255,0.25757216,3304.8,3302.5,1.87189474]
[1768576023451,0.25757216,3304.8,3302.6,6.581]
[1768576023652,0.26027287,3304.8,3302.6,6.58322544]
[1768576023853,0.26027287,3304.8,3302.6,0.00222544]
[1768576024056,0.26027287,3304.8,3302.7,3.551]
[1768576024257,0.26027287,3304.8,3302.6,3.55322544]
[1768576024563,0.26027287,3304.8,3302.6,5.42512018]